Cogmind - Beta 11 X4 @@@ ROGUE MODE // 2021.06.03 @ 18:03:36 Player: rusmal Result: Destroyed by D-53 Grenadier with Mini Grenade Launcher Performance ------------- Evolutions (0) 0 Regions Visited (4) 800 Robots Destroyed (31) 155 Value Destroyed (684) 684 Prototype IDs (4) 80 Alien Tech Used (0) 0 Bonus (-9) -9 TOTAL SCORE: 1710 Bonus ------- Friendly Fire -9 Cogmind --------- Core Integrity 0/250 Matter 146/300 Energy 78/100 System Corruption 0% Temperature Cool (0) Movement Core (250) Ox4 Location -9/Mines Parts ------- > --- POWER (1) -------- (None) > --- PROPULSION (2) --- (None) > --- UTILITY (2) ------ Medium Storage Unit > --- WEAPON (2) ------- Shotgun > --- INVENTORY (10) --- Light Nuclear Core Aluminum Leg Aluminum Leg Aluminum Leg Large Storage Unit Utility Shielding Light Armor Plating Peak State ------------ > --- POWER ------------ Light Ion Engine > --- PROPULSION ------- Aluminum Leg Aluminum Leg > --- UTILITY ---------- Improved Heat Sink Medium Storage Unit > --- WEAPON ----------- Shotgun Rocket Launcher > --- INVENTORY -------- Light Nuclear Core Aluminum Leg Aluminum Leg Aluminum Leg Large Storage Unit Utility Shielding Light Armor Plating Assault Rifle Shotgun Grenade Launcher [Rating: 12] Favorites ----------- Power Light Ion Engine Engine Light Ion Engine Propulsion Aluminum Leg Leg Aluminum Leg Utility Medium Storage Unit Device Improved Heat Sink Storage Medium Storage Unit Weapon Shotgun Ballistic Gun Shotgun Launcher Grenade Launcher Build | -11 -10 -10 -10 -9 ------- Run | Scr Mat Min Exi Min Slots Evolved . | . . . . . Power . | . . . . . Propulsion . | . . . . . Utility . | . . . . . Weapon . | . . . . . Parts Attached 32 | 6 17 6 . 3 Power 4 | 1 2 1 . . Engine 4 | 1 2 1 . . Core . | . . . . . Reactor . | . . . . . Propulsion 9 | 2 5 2 . . Treads . | . . . . . Leg 9 | 2 5 2 . . Wheel . | . . . . . Hover . | . . . . . Flight . | . . . . . Utility 7 | 1 5 1 . . Device 4 | . 3 1 . . Storage 3 | 1 2 . . . Processor . | . . . . . Hackware . | . . . . . Protection . | . . . . . Artifact . | . . . . . Weapon 12 | 2 5 2 . 3 Energy Gun . | . . . . . Energy Cannon . | . . . . . Ballistic Gun 8 | 2 4 . . 2 Ballistic Cannon . | . . . . . Launcher 4 | . 1 2 . 1 Special Weapon . | . . . . . Impact Weapon . | . . . . . Slashing Weapon . | . . . . . Piercing Weapon . | . . . . . Special Melee Weapon . | . . . . . Unidentified Prototypes . | . . . . . Parts Lost 9 | . 1 . . 8 Power 1 | . . . . 1 Propulsion 2 | . . . . 2 Utility 1 | . . . . 1 Weapon 5 | . 1 . . 4 Highest Loss Streak 8 | . 1 . . 8 Average Slot Usage (%) 98 | . 97 100 100 80 Engine 13 | . 13 14 14 9 Leg 27 | . 27 28 28 18 Device 11 | . 8 14 14 9 Storage 15 | . 17 14 14 14 Ballistic Gun 20 | . 27 14 14 18 Launcher 7 | . . 14 14 9 Naked Turns . | . . . . . Heaviest Build 22 | 13 22 21 20 20 Greatest Support 20 | 20 20 20 20 20 Greatest Overweight (x) 2 | 2 1 1 . . Average Overweight (x) . | . . . . . Largest Inventory Capacity 10 | 8 10 10 10 10 Average Capacity 9 | 7 9 10 10 10 Most Carried 10 | 6 10 10 10 10 Average Carried 9 | 3 9 9 10 9 Final Capacity 10 | 8 10 10 10 10 Final Carried 10 | 6 10 10 10 7 Class Distribution -------------------- 62% | Mutant 37% | Scavenger-Mutant Dominant Class ---------------- Mutant | -10/Materials Scavenger-Mutant | -10/Mines Scavenger-Mutant | -10/Exiles Scavenger-Mutant | -9/Mines Resources | -11 -10 -10 -10 -9 ----------- Run | Scr Mat Min Exi Min Matter Collected 855 | 245 376 234 . . Remotely . | . . . . . Salvage Created 719 | . 493 226 . . Parts 57 | . 31 24 . 2 Haulers Intercepted 2 | . 2 . . . Recyclers Shooed 1 | . 1 . . . Parts Field Recycled . | . . . . . Retrieved Matter . | . . . . . Parts Self-Destructed . | . . . . . Prevented . | . . . . . Kills | -11 -10 -10 -10 -9 ------- Run | Scr Mat Min Exi Min Combat Hostiles Destroyed 26 | . 10 15 . 1 Guns 14 | . 10 3 . 1 AOE 12 | . . 12 . . Classes Destroyed 6 | . 4 . . 2 Worker 1 | . . . . 1 Hauler 2 | . 2 . . . Recycler 2 | . 2 . . . Swarmer 12 | . 3 9 . . Grunt 13 | . 7 6 . . Demolisher 1 | . . . . 1 Best Kill Streak 6 | . 6 3 . 2 Combat Bots Only 5 | . 5 3 . 1 Max Kills in Single Turn 2 | . 1 2 . 1 Gunslinging . | . . . . . Exploded 2 | . . 2 . . Melee . | . . . . . Uniques/NPCs Destroyed . | . . . . . Combat | -11 -10 -10 -10 -9 -------- Run | Scr Mat Min Exi Min Damage Taken 1240 | . 498 139 . 603 Core 255 | . 97 28 . 130 Absorbed by Shields . | . . . . . Core Remaining (%) 100 | 100 . . . . Volleys Fired 69 | . 43 21 . 5 Largest 2 | . 2 1 . 2 Hottest 56 | . 43 30 . 56 Shots Fired 114 | . 86 21 . 7 Gun 94 | . 86 5 . 3 Cannon . | . . . . . Launcher 20 | . . 16 . 4 Special . | . . . . . Kinetic 94 | . 86 5 . 3 Thermal . | . . . . . Explosive 20 | . . 16 . 4 Electromagnetic . | . . . . . Robot Hit Streak 12 | . 12 4 . 4 Robot Miss Streak 5 | . 5 3 . 4 Penetration Max . | . . . . . Secondary Targets . | . . . . . Shots Hit Robots 81 | . 67 9 . 5 Core Hits 55 | . 28 20 . 7 Critical Kills . | . . . . . Critical Parts Destroyed 1 | . 1 . . . Critical Strikes 1 | . 1 . . . Destroy 1 | . 1 . . . Melee Attacks . | . . . . . Impact . | . . . . . Slashing . | . . . . . Piercing . | . . . . . Sneak Attacks . | . . . . . Combat Hostiles . | . . . . . Follow-up Attacks . | . . . . . Damage Inflicted 2101 | . 1010 882 . 209 Guns 1094 | . 1010 42 . 42 Cannons . | . . . . . Explosions 1007 | . . 840 . 167 Melee . | . . . . . Ramming . | . . . . . Kinetic 1094 | . 1010 42 . 42 Thermal . | . . . . . Explosive 1007 | . . 840 . 167 Electromagnetic . | . . . . . Impact . | . . . . . Slashing . | . . . . . Piercing . | . . . . . Highest Corruption . | . . . . . Average Corruption . | . . . . . Corruption Purged . | . . . . . Overload Shots . | . . . . . Overflow Damage 37 | . . 30 . 7 Projectiles . | . . . . . Explosions 37 | . . 30 . 7 Melee . | . . . . . Knockbacks . | . . . . . Impact . | . . . . . Kinetic . | . . . . . Secondary . | . . . . . Self-Inflicted Damage 94 | . . 17 . 77 Shots 5 | . . 1 . 4 Rammed . | . . . . . Targets Rammed . | . . . . . Kicked . | . . . . . Crushed . | . . . . . Highest Temperature 3 | . 3 . . . Average Temperature 3 | . 3 . . . Received Heat Transfer 198 | . 186 12 . . Siege Activations . | . . . . . Robots Corrupted . | . . . . . Combat Hostiles . | . . . . . Parts Fried . | . . . . . Impact Corruptions . | . . . . . Robots Melted . | . . . . . Combat Hostiles . | . . . . . Parts Melted . | . . . . . Heat Transferred . | . . . . . Parts Sabotaged . | . . . . . Parts Stolen . | . . . . . Parts Stripped . | . . . . . Power Chain Reactions . | . . . . . Missiles Intercepted . | . . . . . Alert | -11 -10 -10 -10 -9 ------- Run | Scr Mat Min Exi Min Peak Influence 318 | . 288 318 . 20 Initial 28 | . . 28 . . Average 126 | . 123 142 . 1 Maximum Alert Level 1 | . 1 1 . . Low Security (%) 81 | 100 77 85 . 100 Level 1 18 | . 22 14 . . Level 2 . | . . . . . Level 3 . | . . . . . Level 4 . | . . . . . Level 5 . | . . . . . High Security . | . . . . . Max Security . | . . . . . Squads Dispatched 2 | . 2 . . . Investigation 2 | . 2 . . . Extermination . | . . . . . Reinforcement . | . . . . . Assault . | . . . . . Garrison . | . . . . . Intercept . | . . . . . Construction Impeded . | . . . . . Haulers Reinforced . | . . . . . Cargo Convoy Interrupts . | . . . . . Stealth | -11 -10 -10 -10 -9 --------- Run | Scr Mat Min Exi Min Distress Signals 1 | . 1 . . . Communications Jammed . | . . . . . Distress Signals . | . . . . . Times Spotted 48 | . 31 15 . 2 Peak Tracking Total 7 | . 7 3 . 2 Tactical Retreats 7 | . 7 . . . Traps | -11 -10 -10 -10 -9 ------- Run | Scr Mat Min Exi Min Traps Triggered 4 | . 4 . . . Indirectly . | . . . . . Trap Hack Attempts . | . . . . . Triggered . | . . . . . Disarmed . | . . . . . Reprogrammed . | . . . . . Reused . | . . . . . Traps Extracted . | . . . . . Installed . | . . . . . Triggered . | . . . . . Machines | -11 -10 -10 -10 -9 ---------- Run | Scr Mat Min Exi Min Machines Disabled . | . . . . . Max in Single Turn . | . . . . . Machines Sabotaged . | . . . . . Garrisons Compromised . | . . . . . Overloaded Fab Kills . | . . . . . Fab Network Shutdowns . | . . . . . Hacking | -11 -10 -10 -10 -9 --------- Run | Scr Mat Min Exi Min Machines Accessed 15 | . 11 . 4 . Terminals 8 | . 8 . . . Fabricators . | . . . . . Repair Stations 1 | . 1 . . . Recycling Units 2 | . 2 . . . Scanalyzers . | . . . . . Garrison Access . | . . . . . Total Hacks 19 | . 15 . 4 . Successful 12 | . 8 . 4 . Failed 6 | . 6 . . . Catastrophic . | . . . . . Database Lockouts 1 | . 1 . . . Manual 7 | . 7 . . . Terminals 11 | . 11 . . . Fabricators . | . . . . . Repair Stations 2 | . 2 . . . Recycling Units 2 | . 2 . . . Scanalyzers . | . . . . . Garrison Access . | . . . . . Terminal Hacks 8 | . 4 . 4 . Record 4 | . . . 4 . Prototype ID Bank 2 | . 2 . . . Alert Level 1 | . 1 . . . Hauler Manifests 1 | . 1 . . . Fabricator Hacks . | . . . . . Repair Station Hacks 1 | . 1 . . . Scan Component 1 | . 1 . . . Recycling Unit Hacks 2 | . 2 . . . Report Inventory 2 | . 2 . . . Scanalyzer . | . . . . . Garrison Access Hacks . | . . . . . Unauthorized Hacks 1 | . 1 . . . Terminals 1 | . 1 . . . Operators 1 | . 1 . . . Fabricators . | . . . . . Repair Stations . | . . . . . Recycling Units . | . . . . . Scanalyzers . | . . . . . Garrison Access . | . . . . . Data Cores Recovered . | . . . . . Used . | . . . . . Hacking Detections 6 | . 6 . . . Full Trace Events . | . . . . . Feedback Events . | . . . . . Feedback Blocked . | . . . . . Robot Schematics Acquired . | . . . . . Robots Built . | . . . . . Matter . | . . . . . Time . | . . . . . Total Robot Build Rating . | . . . . . Part Schematics Acquired . | . . . . . Parts Built . | . . . . . Matter . | . . . . . Time . | . . . . . Total Part Build Rating . | . . . . . Parts Repaired . | . . . . . Time . | . . . . . Parts Recycled . | . . . . . Recycled Matter . | . . . . . Retrieved Matter . | . . . . . Retrieved Components . | . . . . . Parts Scanalyzed . | . . . . . Part Schematics Acquired . | . . . . . Parts Damaged . | . . . . . Bothacking | -11 -10 -10 -10 -9 ------------ Run | Scr Mat Min Exi Min Used RIF Installer . | . . . . . Robots Hacked . | . . . . . Non-combat . | . . . . . Combat . | . . . . . Robot Hacks Applied . | . . . . . Relay Couplers Released . | . . . . . Robots Rewired . | . . . . . Allies Hacked . | . . . . . Hacks Repelled . | . . . . . Allies | -11 -10 -10 -10 -9 -------- Run | Scr Mat Min Exi Min Total Allies 1 | . . 1 . . Largest Group 1 | . . 1 . . Highest-Rated Group 31 | . . 31 . . Highest-Rated Ally 31 | . . 31 . . Total Orders . | . . . . . Ally Attacks . | . . . . . Total Damage . | . . . . . Kills . | . . . . . Allies Corrupted . | . . . . . Allies Melted . | . . . . . Intel | -11 -10 -10 -10 -9 ------- Run | Scr Mat Min Exi Min Robot Analysis Total . | . . . . . Derelict Logs Recovered 2 | . . 2 . . Drone Launches . | . . . . . Drone Recoveries . | . . . . . Exploration | -11 -10 -10 -10 -9 ------------- Run | Scr Mat Min Exi Min Turns Passed 2761 | 66 1206 961 503 25 Spaces Moved 1863 | 42 744 649 419 9 Core 8 | 8 . . . . Treads . | . . . . . Legs 1855 | 34 744 649 419 9 Wheels . | . . . . . Hover . | . . . . . Flight . | . . . . . Fastest Speed 50 | 50 120 120 120 120 Average Speed 130 | 122 129 138 120 120 Slowest Speed 200 | 200 200 200 120 120 Overloaded Moves . | . . . . . Propulsion Burnouts . | . . . . . Robots Hopped . | . . . . . Cave-ins Triggered . | . . . . . Exploration Rate (%) 58 | 3 98 96 89 7 Regions Visited 4 Branch Regions 3 Pre-discovered Areas 1 | . . 1 . . Known Exits Taken . | . . . . . Unknown Exits Taken 4 | 1 1 1 1 . Scrap Searched 2 | . . 2 . . Spaces Dug . | . . . . . Terrain Destroyed 155 | . . 118 . 37 Melee . | . . . . . Projectile . | . . . . . AOE 155 | . . 118 . 37 Terrain Rammed . | . . . . . Walls Destroyed . | . . . . . Machines Disabled . | . . . . . Actions | -11 -10 -10 -10 -9 --------- Run | Scr Mat Min Exi Min Total 2085 | 53 901 695 419 17 Wait 80 | . 72 7 1 . Move 1859 | 41 743 648 418 9 Hop . | . . . . . Pick Up 21 | 6 11 4 . . Fast Attach 13 | 6 7 . . . Attach 5 | . 2 . . 3 Detach . | . . . . . Swap 14 | . 8 6 . . Drop 24 | . 15 9 . . Fire 69 | . 43 21 . 5 Melee . | . . . . . Ram . | . . . . . Kick . | . . . . . Crush . | . . . . . Escape Stasis . | . . . . . Rewire . | . . . . . Trap . | . . . . . Miscellaneous . | . . . . . Route ------- -11/Scrapyard -10/Materials (discovered 4 exits: [*Mat x3] / [*Min]) -10/Mines (discovered 2 exits: [*Mat] / *Exi) -10/Exiles (discovered 2 exits: [*Min x2]) -9/Mines (discovered 1 exit: [*Mat]) History --------- Turn | Location | Event 6 | -11/Scrapyard | Discovered new exit (range 16) 67 | -11/Scrapyard | Entered Materials 301 | -10/Materials | Build established: Mutant 352 | -10/Materials | Discovered new exit (range 16) 501 | -10/Materials | Discovered new exit (range 9) 556 | -10/Materials | Central database locked down 718 | -10/Materials | Discovered new exit (range 9) 1035 | -10/Materials | Discovered new exit (range 6) 1273 | -10/Materials | Entered Mines 1289 | -10/Mines | Learned Materials terminal intel 1459 | -10/Mines | Deemed a non-threat by the Exiles lab entrance 1459 | -10/Mines | Discovered new exit (range 5) 1695 | -10/Mines | Received a Rocket Launcher from a helpful Derelict 1882 | -10/Mines | Received a Mining Laser from a helpful Derelict 2018 | -10/Mines | Build established: Scavenger-Mutant 2048 | -10/Mines | Found a hidden stash of uninstalled traps 2055 | -10/Mines | Discovered new exit (range 8) 2234 | -10/Mines | Entered Exiles 2234 | -10/Exiles | Found Exiles lab abandoned 2259 | -10/Exiles | Discovered new exit (range 14) 2728 | -10/Exiles | Discovered new exit (range 10) 2737 | -10/Exiles | Entered Mines 2737 | -9/Mines | Discovered new exit (range 15) 2742 | -9/Mines | Assembled infested the area 2750 | -9/Mines | Core integrity fell below 50% 2761 | -9/Mines | Core integrity fell below 20% 2762 | -9/Mines | Destroyed by D-53 Grenadier with Mini Grenade Launcher Last Messages --------------- 02742_ ALERT: Infestation in the mines, dispatching Demolisher response squad. 02749_ C-30 ARC bursts open, deploying its payload. 02749_ D-53 Grenadier unfolds itself. 02750_ K-01 Serf collects debris. 02750_ K-01 Serf destroyed. 02751_ Grenade Launcher destroyed. 02753_ K-01 Serf destroyed. 02753_ Lgt. Ion Engine destroyed. 02753_ Destroyed Lgt. Ion Engine. 02755_ The unstable cave ceiling collapses. 02756_ Shotgun destroyed. 02758_ Rocket Launcher destroyed. 02758_ Aluminum Leg destroyed. 02758_ Imp. Heat Sink destroyed. 02758_ Aluminum Leg destroyed. 02760_ D-53 Grenadier destroyed. 02760_ K-01 Serf collects debris. 02760_ Assault Rifle destroyed. 02761_ The unstable cave ceiling collapses. Map ----- +----------------------------------------------------+ | | | | | | | | | | | | | | | | | | | | | | | | | | | ????????????????????????????????? | | ????????###?????????????????????? | | ??????## ##?????##?????????????? | | ???#### #### ??????????????? | | ??## ?????????????????? | | ?## #???????????????????? | | ?# #???????????????????? | | ?# ##??????????????????? | | ??# #??????????????????? | | ??## #??????????????????? | | ??## #??????????????????? | | ??# #??????????????????? | | ?# @ #??????????????????? | | ?# #??????????????????? | | ?# #??????????????????? | | ?# #d # ##??????????????????? | | ?# ##???????????????????? | | ?# = ##????????????????????? | | ?# ##?????????????????????? | | ?## ##??????????????????????? | | ??# ????????????????????????? | | ??# t ????????????????????????? | | ??# k????????????????????????? | | ??# < ????????????????????????? | | ??# ????????????????????????? | | ??######????????????????????????? | | ????????????????????????????????? | | ????????????????????????????????? | | ????????????????????????????????? | | ????????????????????????????????? | | ????????????????????????????????? | | ????????????????????????????????? | | ????????????????????????????????? | | ????????????????????????????????? | | ????????????????????????????????? | | ????????????????????????????????? | | ????????????????????????????????? | +----------------------------------------------------+ Best States ------------- Heat Dissipation 39 Energy Generation 10 Energy Capacity 250 Matter Stores 300 Matter Capacity 400 Sight Range 16 Terrain Scan Density 10 ECM Strength 1 Evasion (%) 55 Item Schematics ----------------- None Robot Schematics ------------------ None Fabricated ------------ Nothing Alien Tech Used ----------------- None Achievements -------------- None Challenges ------------ None Game ------ Seed PointXenonLance Manual? 0 Play Time 00:18:38 Cumulative 51.6 hours Start 2021.06.03 @ 17:45:10 End 2021.06.03 @ 18:03:36 Sessions 1 Manual Loads 0 Difficulty Rogue Special Mode None Game No. 48 Rogue 48 Adventurer 0 Explorer 0 Win Type - Total 1 Types 1/0/0/0/0/0/0/0/0 Lore% 44 Gallery% 48 Achievement% 41 Wizard Run 0 Options --------- ASCII 1 Keyboard 1 Movement Numpad Keybinds 0 Fullscreen 2 Font 18/SmallcapsGlow Map View 76x50 Tactical HUD 1 Map Filters NONE Filters NONE Steam 1 RUN: 1614b327-2ac4-463d-8d1e-0d97a4602ebb